fUST/lending_fUST_20250628
["ID","MTS","AMOUNT","RATE_DAILY","PERIOD"]
[368326619,1751121041388,-460.0,0.00019178,2]
[368326620,1751121041397,-460.0,0.00019178,2]
[368326621,1751121041407,-460.0,0.00019178,2]
[368326622,1751121041416,-460.0,0.00019178,2]
[368326623,1751121041425,-461.35967093,0.00019178,2]
[368326624,1751121041434,-460.0,0.00019178,2]
[368326625,1751121041443,-460.0,0.00019178,2]
[368326626,1751121041453,-464.32,0.00019178,2]
[368326627,1751121041462,-460.0,0.00019178,2]
[368326628,1751121041472,-460.0,0.00019178,2]
[368326629,1751121041481,-460.0,0.00019178,2]
[368326630,1751121041491,-460.0,0.00019178,2]
[368326631,1751121041500,-460.0,0.00019178,2]
[368326632,1751121041509,-460.0,0.00019178,2]
[368326633,1751121041519,-460.0,0.00019178,2]
[368326634,1751121041528,-460.30703095,0.00019178,2]
[368326635,1751121041537,-2420.5,0.00019178,2]
[368326636,1751121041546,-460.0,0.00019178,2]
[368326637,1751121041556,-1516.03,0.00019178,2]
[368326638,1751121041565,-155.10186208,0.00019178,2]
[368326639,1751121041575,-307.46,0.00019178,2]
[368326640,1751121041584,-460.0,0.00019178,2]
[368326641,1751121041593,-460.0,0.00019178,2]
[368326642,1751121041603,-460.0,0.00019178,2]
[368326643,1751121041612,-460.0,0.00019178,2]
[368326644,1751121041621,-460.0,0.00019178,2]
[368326645,1751121041630,-460.0,0.00019178,2]
[368326646,1751121041640,-460.0,0.00019178,2]
[368326647,1751121041649,-460.0,0.00019178,2]
[368326648,1751121041658,-2718.97,0.00019178,2]
[368326649,1751121041667,-907.82,0.00019178,2]
[368326650,1751121041676,-460.0,0.00019178,2]
[368326651,1751121041685,-463.02,0.00019178,2]
[368326652,1751121041694,-460.0,0.00019178,2]
[368326653,1751121041703,-460.0,0.00019178,2]
[368326654,1751121041713,-460.0,0.00019178,2]
[368326655,1751121041722,-460.0,0.00019178,2]
[368326656,1751121041731,-460.0,0.00019178,2]
[368326657,1751121041740,-462.67971298,0.00019178,2]
[368326658,1751121041750,-460.0,0.00019178,2]
[368326659,1751121041759,-460.0,0.00019178,2]
[368326660,1751121041768,-460.0,0.00019178,2]
[368326661,1751121041778,-460.0,0.00019178,2]
[368326662,1751121041788,-1021.59,0.00019178,2]
[368326663,1751121041797,-460.0,0.00019178,2]
[368326664,1751121041809,-460.0,0.00019178,2]
[368326665,1751121041819,-765.19,0.00019178,2]
[368326666,1751121041829,-460.0,0.00019178,2]
[368326667,1751121041838,-460.0,0.00019178,2]
[368326668,1751121041848,-460.0,0.00019178,2]
[368326669,1751121041857,-460.0,0.00019178,2]
[368326670,1751121041866,-460.0,0.00019178,2]
[368326671,1751121041875,-460.0,0.00019178,2]
[368326672,1751121041885,-851.31,0.00019178,2]
[368326673,1751121041894,-591.41,0.00019178,2]
[368326674,1751121041903,-460.0,0.00019178,2]
[368326675,1751121041913,-460.0,0.00019178,2]
[368326676,1751121041922,-460.0,0.00019178,2]
[368326677,1751121041931,-460.0,0.00019178,2]
[368326678,1751121041941,-460.0,0.00019178,2]
[368326679,1751121041950,-460.0,0.00019178,2]
[368326680,1751121041959,-460.0,0.00019178,2]
[368326681,1751121041969,-460.0,0.00019178,2]
[368326682,1751121041978,-460.0,0.00019178,2]
[368326683,1751121041987,-460.0,0.00019178,2]
[368326684,1751121041997,-460.0,0.00019178,2]
[368326685,1751121042006,-460.0,0.00019178,2]
[368326686,1751121042015,-460.0,0.00019178,2]
[368326687,1751121042024,-207.29663113,0.00019178,2]
[368326688,1751121042036,-460.0,0.00019178,2]
[368326689,1751121042045,-460.0,0.00019178,2]
[368326690,1751121042054,-460.0,0.00019178,2]
[368326691,1751121042063,-1023.06,0.00019178,2]
[368326692,1751121042072,-520.540978,0.00019178,2]
[368326693,1751121042082,-606.97761061,0.00019205,5]
[368326694,1751121042091,-270.21858572,0.00019251,2]
[368326695,1751121042100,-65194.54474401,0.00019329,2]
[368326696,1751121042109,-2373.76502796,0.00019351,2]
[368326697,1751121042120,-9109.97381975,0.00019417,2]
[368326698,1751121042130,-500.0,0.0001945,2]
[368326699,1751121042139,-6207.39064573,0.0001945,2]
[368326700,1751121042148,-460.0,0.00019452,2]
[368326701,1751121042157,-507.92366608,0.00019452,2]
[368326702,1751121042167,-460.0,0.00019452,2]
[368326703,1751121042176,-460.0,0.00019452,2]
[368326704,1751121042185,-460.0,0.00019452,2]
[368326705,1751121042195,-460.0,0.00019452,2]
[368326706,1751121042205,-460.0,0.00019452,2]
[368326707,1751121042214,-378.07562485,0.00019452,2]
[368326708,1751121042223,-460.0,0.00019452,2]
[368326709,1751121042232,-460.0,0.00019452,2]
[368326710,1751121042242,-460.0,0.00019452,2]
[368326711,1751121042251,-460.0,0.00019452,2]
[368326712,1751121042260,-460.0,0.00019452,2]
[368326713,1751121042269,-433.22874126,0.00019452,2]
[368326714,1751121042279,-460.0,0.00019452,2]
[368326715,1751121042288,-441.79286124,0.00019452,2]
[368326716,1751121042298,-460.0,0.00019452,2]
[368326717,1751121042307,-460.0,0.00019452,2]
[368326718,1751121042316,-460.0,0.00019452,2]
[368326719,1751121042326,-460.0,0.00019452,2]
[368326720,1751121042335,-187.93956882,0.00019452,2]
[368326721,1751121042344,-557.83159,0.00019452,2]
[368326722,1751121042353,-603.72729441,0.00019452,2]
[368326723,1751121042362,-461.77921888,0.00019452,2]
[368326724,1751121042374,-460.0,0.00019452,2]
[368326725,1751121042383,-460.0,0.00019452,2]
[368326726,1751121042392,-460.0,0.00019452,2]
[368326727,1751121042401,-460.0,0.00019452,2]
[368326728,1751121042411,-460.0,0.00019452,2]
[368326729,1751121042420,-425.148073,0.00019452,2]
[368326730,1751121042430,-460.0,0.00019452,2]
[368326731,1751121042439,-460.0,0.00019452,2]
[368326732,1751121042448,-460.0,0.00019452,2]
[368326733,1751121042457,-460.0,0.00019452,2]
[368326734,1751121042467,-460.0,0.00019452,2]
[368326735,1751121042476,-460.0,0.00019452,2]
[368326736,1751121042485,-460.0,0.00019452,2]
[368326737,1751121042494,-460.0,0.00019452,2]
[368326738,1751121042503,-460.0,0.00019452,2]
[368326739,1751121042512,-814.56,0.00019452,2]
[368326740,1751121042522,-460.0,0.00019452,2]
[368326741,1751121042531,-460.0,0.00019452,2]
[368326742,1751121042540,-460.0,0.00019452,2]
[368326743,1751121042549,-922.31,0.00019452,2]
[368326744,1751121042560,-460.0,0.00019452,2]
[368326745,1751121042569,-460.0,0.00019452,2]
[368326746,1751121042578,-542.06,0.00019452,2]
[368326747,1751121042587,-460.0,0.00019452,2]
[368326748,1751121042596,-460.0,0.00019452,2]
[368326749,1751121042606,-460.0,0.00019452,2]
[368326750,1751121042616,-460.0,0.00019452,2]
[368326751,1751121042627,-566.23,0.00019452,2]
[368326752,1751121042636,-1143.53,0.00019452,2]
[368326753,1751121042646,-460.0,0.00019452,2]
[368326754,1751121042656,-460.0,0.00019452,2]
[368326755,1751121042666,-460.0,0.00019452,2]
[368326756,1751121042675,-460.0,0.00019452,2]
[368326757,1751121042685,-460.0,0.00019452,2]
[368326758,1751121042694,-460.0,0.00019452,2]
[368326759,1751121042703,-460.0,0.00019452,2]
[368326760,1751121042714,-915.18,0.00019452,2]
[368326761,1751121042723,-460.0,0.00019452,2]
[368326762,1751121042732,-356.39224192,0.00019452,2]
[368326763,1751121042741,-460.0,0.00019452,2]
[368326764,1751121042751,-460.0,0.00019452,2]
[368326765,1751121042760,-1185.83,0.00019452,2]
[368326766,1751121042769,-460.0,0.00019452,2]
[368326767,1751121042779,-460.0,0.00019452,2]
[368326768,1751121042788,-460.0,0.00019452,2]
[368326769,1751121042797,-460.0,0.00019452,2]
[368326770,1751121042807,-460.0,0.00019452,2]
[368326771,1751121042816,-460.0,0.00019452,2]
[368326772,1751121042825,-615.29,0.00019452,2]
[368326773,1751121042835,-460.0,0.00019452,2]
[368326774,1751121042845,-1009.76,0.00019452,2]
[368326775,1751121042855,-1416.99,0.00019452,2]
[368326776,1751121042864,-711.04,0.00019452,2]
[368326777,1751121042874,-460.0,0.00019452,2]
[368326778,1751121042883,-460.0,0.00019452,2]
[368326779,1751121042893,-460.0,0.00019452,2]
[368326780,1751121042902,-1085.24,0.00019452,2]
[368326781,1751121042911,-460.0,0.00019452,2]
[368326782,1751121042921,-460.0,0.00019452,2]
[368326783,1751121042931,-460.0,0.00019452,2]
[368326784,1751121042940,-460.0,0.00019452,2]
[368326785,1751121042950,-2000.47,0.00019452,2]
[368326787,1751121042960,-460.0,0.00019452,2]
[368326788,1751121042969,-460.0,0.00019452,2]
[368326789,1751121042978,-460.0,0.00019452,2]
[368326791,1751121042988,-460.0,0.00019452,2]
[368326792,1751121042998,-464.32,0.00019452,2]
[368326793,1751121043007,-460.0,0.00019452,2]
[368326794,1751121043018,-460.0,0.00019452,2]
[368326795,1751121043027,-460.0,0.00019452,2]
[368326796,1751121043041,-460.0,0.00019452,2]
[368326798,1751121043051,-460.0,0.00019452,2]
[368326800,1751121043060,-460.0,0.00019452,2]
[368326801,1751121043070,-1516.03,0.00019452,2]
[368326802,1751121043080,-2420.5,0.00019452,2]
[368326803,1751121043091,-460.0,0.00019452,2]
[368326804,1751121043100,-460.0,0.00019452,2]
[368326805,1751121043109,-460.0,0.00019452,2]
[368326806,1751121043119,-460.0,0.00019452,2]
[368326807,1751121043128,-460.0,0.00019452,2]
[368326808,1751121043138,-2718.97,0.00019452,2]
[368326809,1751121043147,-907.82,0.00019452,2]
[368326810,1751121043157,-460.0,0.00019452,2]
[368326811,1751121043166,-463.02,0.00019452,2]
[368326812,1751121043175,-460.0,0.00019452,2]
[368326813,1751121043184,-460.0,0.00019452,2]
[368326814,1751121043193,-460.0,0.00019452,2]
[368326815,1751121043203,-460.0,0.00019452,2]
[368326816,1751121043212,-460.0,0.00019452,2]
[368326817,1751121043222,-460.0,0.00019452,2]
[368326818,1751121043232,-460.0,0.00019452,2]
[368326819,1751121043241,-1021.59,0.00019452,2]
[368326821,1751121043250,-460.0,0.00019452,2]
[368326822,1751121043260,-765.19,0.00019452,2]
[368326823,1751121043269,-460.0,0.00019452,2]
[368326824,1751121043279,-218.09063573,0.00019452,2]
[368326825,1751121043287,-460.0,0.00019452,2]
[368326826,1751121043297,-460.0,0.00019452,2]
[368326827,1751121043306,-460.0,0.00019452,2]
[368326828,1751121043315,-460.0,0.00019452,2]
[368326829,1751121043324,-851.31,0.00019452,2]
[368326830,1751121043333,-591.41,0.00019452,2]
[368326831,1751121043343,-460.0,0.00019452,2]
[368326832,1751121043351,-460.0,0.00019452,2]
[368326833,1751121043360,-460.0,0.00019452,2]
[368326834,1751121043369,-460.0,0.00019452,2]
[368326835,1751121043379,-460.0,0.00019452,2]
[368326836,1751121043388,-460.0,0.00019452,2]
[368326837,1751121043397,-460.0,0.00019452,2]
[368326838,1751121043407,-460.0,0.00019452,2]
[368326839,1751121043416,-460.0,0.00019452,2]
[368326840,1751121043425,-460.0,0.00019452,2]
[368326841,1751121043433,-1023.06,0.00019452,2]
[368326842,1751121043442,-289.89459634,0.00019541,2]
[368326843,1751121043451,-500.0,0.00019552,2]
[368326844,1751121043460,-500.0,0.00019554,2]
[368326845,1751121043471,-500.0,0.00019554,2]
[368326846,1751121043480,-501.72407384,0.00019647,2]
[368326847,1751121043489,-500.0,0.00019647,2]
[368326848,1751121043499,-500.13096027,0.00019647,2]
[368326849,1751121043509,-501.18341451,0.00019647,2]
[368326850,1751121043519,-500.0,0.00019724,2]
[368326851,1751121043529,-460.0,0.00019726,2]
[368326852,1751121043539,-460.0,0.00019726,2]
[368326854,1751121043548,-266.13695828,0.00019726,2]
[368326855,1751121043558,-460.0,0.00019726,2]
[368326856,1751121043569,-433.51168511,0.00019726,2]
[368326857,1751121043578,-460.0,0.00019726,2]
[368326858,1751121043588,-460.0,0.00019726,2]
[368326859,1751121043599,-460.0,0.00019726,2]
[368326860,1751121043609,-460.0,0.00019726,2]
[368326861,1751121043619,-460.0,0.00019726,2]
[368326862,1751121043628,-291.16865489,0.00019726,2]
[368326863,1751121043637,-460.0,0.00019726,2]
[368326864,1751121043647,-151.0,0.00019726,2]
[368326865,1751121043657,-460.0,0.00019726,2]
[368326866,1751121043666,-460.0,0.00019726,2]
[368326867,1751121043675,-460.0,0.00019726,2]
[368326868,1751121043685,-151.0,0.00019726,2]
[368326869,1751121043694,-151.0,0.00019726,2]
[368326870,1751121043704,-151.0,0.00019726,2]
[368326871,1751121043714,-151.0,0.00019726,2]
[368326872,1751121043724,-573.73,0.00019726,2]
[368326873,1751121043734,-460.0,0.00019726,2]
[368326874,1751121043743,-460.0,0.00019726,2]
[368326875,1751121043753,-195.98,0.00019726,2]
[368326876,1751121043762,-460.0,0.00019726,2]
[368326877,1751121043772,-460.0,0.00019726,2]
[368326878,1751121043781,-460.0,0.00019726,2]
[368326879,1751121043791,-460.0,0.00019726,2]
[368326880,1751121043800,-814.56,0.00019726,2]
[368326881,1751121043809,-460.0,0.00019726,2]
[368326882,1751121043818,-460.0,0.00019726,2]
[368326883,1751121043828,-922.31,0.00019726,2]
[368326884,1751121043837,-460.0,0.00019726,2]
[368326886,1751121043847,-460.0,0.00019726,2]
[368326887,1751121043857,-151.0,0.00019726,2]
[368326888,1751121043866,-151.0,0.00019726,2]
[368326889,1751121043876,-198.0,0.00019726,2]
[368326890,1751121043988,-151.0,0.00019726,2]
[368326891,1751121044011,-460.0,0.00019726,2]
[368326892,1751121044021,-460.0,0.00019726,2]
[368326893,1751121044031,-460.0,0.00019726,2]
[368326894,1751121044044,-411.83573595,0.00019726,2]
[368326895,1751121044054,-566.23,0.00019726,2]
[368326896,1751121044063,-1143.53,0.00019726,2]
[368326897,1751121044072,-460.0,0.00019726,2]
[368326898,1751121044083,-540.0,0.00019726,2]
[368326899,1751121044092,-460.0,0.00019726,2]
[368326900,1751121044101,-460.0,0.00019726,2]
[368326901,1751121044111,-460.0,0.00019726,2]
[368326902,1751121044120,-460.0,0.00019726,2]
[368326903,1751121044130,-460.0,0.00019726,2]
[368326904,1751121044139,-915.18,0.00019726,2]
[368326905,1751121044149,-460.0,0.00019726,2]
[368326906,1751121044160,-460.0,0.00019726,2]
[368326907,1751121044169,-395.48,0.00019726,2]
[368326908,1751121044179,-1185.83,0.00019726,2]
[368326909,1751121044189,-460.0,0.00019726,2]
[368326910,1751121044198,-460.0,0.00019726,2]
[368326911,1751121044208,-460.0,0.00019726,2]
[368326912,1751121044217,-460.0,0.00019726,2]
[368326913,1751121044226,-219.58,0.00019726,2]
[368326914,1751121044235,-460.0,0.00019726,2]
[368326915,1751121044246,-615.29,0.00019726,2]
[368326916,1751121044256,-460.0,0.00019726,2]
[368326917,1751121044265,-1009.76,0.00019726,2]
[368326918,1751121044274,-1416.99,0.00019726,2]
[368326919,1751121044284,-711.04,0.00019726,2]
[368326920,1751121044293,-1182.0,0.00019726,2]
[368326921,1751121044303,-460.0,0.00019726,2]
[368326922,1751121044312,-460.0,0.00019726,2]
[368326923,1751121044321,-1085.24,0.00019726,2]
[368326924,1751121044331,-460.0,0.00019726,2]
[368326925,1751121044340,-460.0,0.00019726,2]
[368326926,1751121044349,-2000.47,0.00019726,2]
[368326927,1751121044358,-460.0,0.00019726,2]
[368326928,1751121044367,-460.0,0.00019726,2]
[368326929,1751121044377,-460.0,0.00019726,2]
[368326930,1751121044386,-460.0,0.00019726,2]
[368326931,1751121044395,-464.32,0.00019726,2]
[368326932,1751121044405,-460.0,0.00019726,2]
[368326933,1751121044414,-460.0,0.00019726,2]
[368326934,1751121044424,-460.0,0.00019726,2]
[368326935,1751121044433,-460.0,0.00019726,2]
[368326936,1751121044442,-1516.03,0.00019726,2]
[368326937,1751121044451,-2420.5,0.00019726,2]
[368326938,1751121044461,-413.12,0.00019726,2]
[368326939,1751121044470,-460.0,0.00019726,2]
[368326940,1751121044480,-460.0,0.00019726,2]
[368326941,1751121044489,-2718.97,0.00019726,2]
[368326942,1751121044498,-907.82,0.00019726,2]
[368326943,1751121044507,-460.0,0.00019726,2]
[368326944,1751121044516,-463.02,0.00019726,2]
[368326945,1751121044525,-460.0,0.00019726,2]
[368326946,1751121044534,-460.0,0.00019726,2]
[368326947,1751121044543,-460.0,0.00019726,2]
[368326948,1751121044553,-460.0,0.00019726,2]
[368326949,1751121044562,-460.0,0.00019726,2]
[368326950,1751121044571,-460.0,0.00019726,2]
[368326951,1751121044581,-1021.59,0.00019726,2]
[368326952,1751121044590,-460.0,0.00019726,2]
[368326953,1751121044599,-765.19,0.00019726,2]
[368326954,1751121044609,-460.0,0.00019726,2]
[368326955,1751121044619,-460.0,0.00019726,2]
[368326956,1751121044629,-460.0,0.00019726,2]
[368326957,1751121044638,-851.31,0.00019726,2]
[368326958,1751121044648,-591.41,0.00019726,2]
[368326959,1751121044657,-460.0,0.00019726,2]
[368326960,1751121044666,-460.0,0.00019726,2]
[368326961,1751121044675,-460.0,0.00019726,2]
[368326962,1751121044685,-573.64,0.00019726,2]
[368326963,1751121044695,-460.0,0.00019726,2]
[368326964,1751121044704,-460.0,0.00019726,2]
[368326965,1751121044714,-155.72989665,0.00019726,2]
[368326966,1751121044724,-151.0,0.00019753,2]
[368326967,1751121044735,-263.19621546,0.00019753,2]
[368326968,1751121044744,-151.0,0.00019753,2]
[368326969,1751121044753,-151.0,0.00019753,2]
[368326970,1751121044763,-151.0,0.00019753,2]
[368326971,1751121044772,-151.0,0.00019753,2]
[368326972,1751121044783,-151.0,0.00019753,2]
[368326973,1751121044792,-1182.0,0.00019753,2]
[368326974,1751121044802,-151.0,0.00019781,2]
[368326975,1751121044811,-151.0,0.00019781,2]
[368326976,1751121044821,-151.0,0.00019781,2]
[368326977,1751121044831,-245.0,0.00019781,2]
[368326978,1751121044845,-198.0,0.00019781,2]
[368326979,1751121044854,-198.0,0.00019781,2]
[368326980,1751121044864,-1182.0,0.00019781,2]
[368326981,1751121044874,-1182.0,0.00019808,2]
[368326982,1751121044883,-474.03538423,0.00019829,2]
[368326983,1751121044894,-500.0,0.00019834,2]
[368326984,1751121044904,-1182.0,0.00019836,2]
[368326985,1751121044914,-500.68515548,0.00019859,2]
[368326986,1751121044923,-1182.0,0.00019863,2]
[368326987,1751121044934,-1182.0,0.0001989,2]
[368326988,1751121044944,-420.0,0.00019893,2]
[368326989,1751121044955,-3222.09333922,0.000199,2]
[368326990,1751121044964,-1182.0,0.00019918,2]
[368326991,1751121044974,-1182.0,0.00019945,2]
[368326992,1751121044984,-2473.48566784,0.0001995,2]
[368326993,1751121044993,-1182.0,0.00019973,2]
[368326994,1751121045002,-500.0,0.00019998,2]
[368326995,1751121045011,-1182.0,0.0002,2]
[368326996,1751121045022,-460.0,0.0002,2]
[368326997,1751121045034,-554.64451987,0.0002,2]
[368326998,1751121045044,-434.93440912,0.0002,2]
[368326999,1751121045054,-460.0,0.0002,2]
[368327000,1751121045064,-460.0,0.0002,2]
[368327001,1751121045074,-460.0,0.0002,2]
[368327002,1751121045084,-554.93,0.0002,2]
[368327003,1751121045093,-460.0,0.0002,2]
[368327004,1751121045103,-460.0,0.0002,2]
[368327005,1751121045113,-460.0,0.0002,2]
[368327006,1751121045123,-460.0,0.0002,2]
[368327007,1751121045138,-460.0,0.0002,2]
[368327008,1751121045148,-460.0,0.0002,2]
[368327009,1751121045157,-460.0,0.0002,2]
[368327010,1751121045167,-814.56,0.0002,2]
[368327011,1751121045176,-460.0,0.0002,2]
[368327012,1751121045185,-460.0,0.0002,2]
[368327013,1751121045195,-922.31,0.0002,2]
[368327014,1751121045205,-460.0,0.0002,2]
[368327015,1751121045214,-460.0,0.0002,2]
[368327016,1751121045224,-460.0,0.0002,2]
[368327017,1751121045233,-460.0,0.0002,2]
[368327018,1751121045243,-566.23,0.0002,2]
[368327019,1751121045252,-1143.53,0.0002,2]
[368327020,1751121045262,-460.0,0.0002,2]
[368327021,1751121045271,-460.0,0.0002,2]
[368327022,1751121045281,-460.0,0.0002,2]
[368327023,1751121045291,-460.0,0.0002,2]
[368327024,1751121045300,-460.0,0.0002,2]
[368327025,1751121045310,-460.0,0.0002,2]
[368327026,1751121045319,-915.18,0.0002,2]
[368327027,1751121045328,-460.0,0.0002,2]
[368327028,1751121045337,-460.0,0.0002,2]
[368327029,1751121045347,-1185.83,0.0002,2]
[368327030,1751121045357,-460.0,0.0002,2]
[368327031,1751121045366,-460.0,0.0002,2]
[368327032,1751121045375,-460.0,0.0002,2]
[368327033,1751121045384,-615.29,0.0002,2]
[368327034,1751121045394,-1009.76,0.0002,2]
[368327035,1751121045407,-1416.99,0.0002,2]
[368327036,1751121045416,-711.04,0.0002,2]
[368327037,1751121045426,-460.0,0.0002,2]
[368327038,1751121045435,-1085.24,0.0002,2]
[368327039,1751121045444,-460.0,0.0002,2]
[368327040,1751121045454,-2000.47,0.0002,2]
[368327041,1751121045463,-460.0,0.0002,2]
[368327042,1751121045472,-460.0,0.0002,2]
[368327043,1751121045482,-472.28,0.0002,2]
[368327044,1751121045493,-464.32,0.0002,2]
[368327045,1751121045503,-460.0,0.0002,2]
[368327046,1751121045512,-460.0,0.0002,2]
[368327047,1751121045523,-460.0,0.0002,2]
[368327048,1751121045533,-1516.03,0.0002,2]
[368327049,1751121045542,-2420.5,0.0002,2]
[368327050,1751121045551,-460.0,0.0002,2]
[368327051,1751121045561,-2718.97,0.0002,2]
[368327052,1751121045570,-907.82,0.0002,2]
[368327053,1751121045579,-463.02,0.0002,2]
[368327054,1751121045588,-460.0,0.0002,2]
[368327055,1751121045597,-460.0,0.0002,2]
[368327056,1751121045607,-497.905898,0.0002,2]
[368327057,1751121045617,-460.0,0.0002,2]
[368327058,1751121045626,-460.0,0.0002,2]
[368327059,1751121045636,-1021.59,0.0002,2]
[368327060,1751121045645,-460.0,0.0002,2]
[368327061,1751121045655,-765.19,0.0002,2]
[368327062,1751121045664,-449.10747191,0.0002,2]
[368327063,1751121045673,-851.31,0.0002,2]
[368327064,1751121045682,-591.41,0.0002,2]
[368327065,1751121045691,-460.0,0.0002,2]
[368327066,1751121045701,-460.0,0.0002,2]
[368327067,1751121045711,-460.0,0.0002,2]
[368327068,1751121045720,-1182.0,0.00020027,2]
[368327069,1751121045730,-1473.56066982,0.00020027,2]
[368327070,1751121045739,-1182.0,0.00020055,2]
[368327071,1751121045748,-1182.0,0.00020082,2]
[368327072,1751121045758,-3222.09333918,0.00020107,2]
[368327073,1751121045768,-1182.0,0.0002011,2]
[368327074,1751121045777,-847.18566335,0.00020116,2]
[368327075,1751121045787,-160.0,0.00020116,2]
[368327076,1751121045797,-837.06984471,0.00020116,2]
[368327077,1751121045806,-160.0,0.00020116,2]
[368327078,1751121045815,-160.0,0.00020116,2]
[368327079,1751121045824,-214.95397287,0.00020116,2]
[368327080,1751121045834,-230.28494567,0.00020116,2]
[368327081,1751121045843,-160.0,0.00020116,2]
[368327082,1751121045853,-213.78848551,0.00020116,2]
[368327083,1751121045863,-160.0,0.00020116,2]
[368327084,1751121045872,-12564.78152626,0.00020116,2]
[368327085,1751121045882,-1182.0,0.00020137,2]
[368327086,1751121045891,-1182.0,0.00020164,2]
[368327087,1751121045900,-265.349698,0.00020187,2]
[368327088,1751121045910,-1182.0,0.00020192,2]
[368327089,1751121045919,-2373.76502793,0.00020213,2]
[368327090,1751121045929,-1182.0,0.00020219,2]
[368327091,1751121045938,-1182.0,0.00020247,2]
[368327092,1751121045948,-500.0,0.00020272,2]
[368327093,1751121045957,-475.6728363,0.00020273,2]
[368327094,1751121045967,-460.0,0.00020273,2]
[368327095,1751121045976,-440.0,0.00020273,2]
[368327096,1751121045985,-460.0,0.00020273,2]
[368327097,1751121045995,-159.93,0.00020273,2]
[368327098,1751121046004,-460.0,0.00020273,2]
[368327099,1751121046013,-460.0,0.00020273,2]
[368327100,1751121046023,-460.0,0.00020273,2]
[368327101,1751121046032,-460.0,0.00020273,2]
[368327102,1751121046042,-814.56,0.00020273,2]
[368327103,1751121046054,-460.0,0.00020273,2]
[368327104,1751121046063,-460.0,0.00020273,2]
[368327105,1751121046072,-922.31,0.00020273,2]
[368327107,1751121046081,-460.0,0.00020273,2]
[368327109,1751121046092,-460.0,0.00020273,2]
[368327111,1751121046101,-460.0,0.00020273,2]
[368327113,1751121046110,-278.29112005,0.00020273,2]
[368327115,1751121046120,-566.23,0.00020273,2]
[368327117,1751121046130,-1143.53,0.00020273,2]
[368327119,1751121046139,-460.0,0.00020273,2]
[368327120,1751121046148,-460.0,0.00020273,2]
[368327121,1751121046158,-460.0,0.00020273,2]
[368327122,1751121046167,-460.0,0.00020273,2]
[368327123,1751121046176,-460.0,0.00020273,2]
[368327124,1751121046187,-915.18,0.00020273,2]
[368327125,1751121046197,-460.0,0.00020273,2]
[368327126,1751121046207,-460.0,0.00020273,2]
[368327127,1751121046217,-1185.83,0.00020273,2]
[368327128,1751121046227,-460.0,0.00020273,2]
[368327129,1751121046236,-460.0,0.00020273,2]
[368327130,1751121046246,-615.29,0.00020273,2]
[368327131,1751121046256,-1009.76,0.00020273,2]
[368327132,1751121046265,-1416.99,0.00020273,2]